[Event "*** MasterClass Titled Tuesday Blitz"]
[Site "Chess.com"]
[Date "2017.09.05"]
[Round "7"]
[White "kleinebeer98"]
[Black "wonderfultime"]
[Result "1-0"]
[WhiteElo "2484"]
[BlackElo "2658"]
[TimeControl "180+2"]
[EndTime "14:42:15 PDT"]
[Termination "kleinebeer98 won by resignation"]

1. e4 {[%clk 0:03:01.9]} 1... c5 {[%clk 0:02:10.2]} 2. Nf3 {[%clk 0:03:01.1]}
2... d6 {[%clk 0:02:09]} 3. d4 {[%clk 0:03:02.2]} 3... cxd4 {[%clk 0:02:08.8]}
4. Nxd4 {[%clk 0:03:04.1]} 4... Nf6 {[%clk 0:02:10.7]} 5. Nc3 {[%clk 0:03:05.1]}
5... g6 {[%clk 0:02:12.3]} 6. h3 {[%clk 0:03:04.8]} 6... Bg7 {[%clk 0:02:02.5]}
7. Bc4 {[%clk 0:03:06]} 7... O-O {[%clk 0:02:02.4]} 8. O-O {[%clk 0:03:06.8]}
8... Nc6 {[%clk 0:02:03.6]} 9. Nf3 {[%clk 0:03:08]} 9... a6 {[%clk 0:01:40.3]}
10. Re1 {[%clk 0:03:08.3]} 10... b5 {[%clk 0:01:40.3]} 11. Bb3 {[%clk
0:03:09.8]} 11... Bb7 {[%clk 0:01:39.5]} 12. Bg5 {[%clk 0:03:11]} 12... Re8
{[%clk 0:01:40.8]} 13. a4 {[%clk 0:03:00.7]} 13... b4 {[%clk 0:01:41.5]} 14. Nd5
{[%clk 0:02:54.5]} 14... Nd7 {[%clk 0:01:38.6]} 15. c3 {[%clk 0:02:28]} 15...
bxc3 {[%clk 0:01:33.9]} 16. bxc3 {[%clk 0:02:27]} 16... Nc5 {[%clk 0:01:33.3]}
17. Ba2 {[%clk 0:02:23.4]} 17... Rb8 {[%clk 0:01:23.1]} 18. Qd2 {[%clk
0:02:14.8]} 18... Ne5 {[%clk 0:01:15.3]} 19. Nxe5 {[%clk 0:02:09.3]} 19... Bxe5
{[%clk 0:01:14.7]} 20. Rad1 {[%clk 0:01:57.1]} 20... Qd7 {[%clk 0:01:08.7]} 21.
Bf4 {[%clk 0:01:30.4]} 21... Bxd5 {[%clk 0:01:06.9]} 22. Bxd5 {[%clk 0:01:26]}
22... Bxf4 {[%clk 0:00:52.8]} 23. Qxf4 {[%clk 0:01:27.9]} 23... e6 {[%clk
0:00:54.5]} 24. Ba2 {[%clk 0:01:19.4]} 24... Qxa4 {[%clk 0:00:55.4]} 25. Qxd6
{[%clk 0:01:16.7]} 25... Nxe4 {[%clk 0:00:51.1]} 26. Qe5 {[%clk 0:01:08.5]}
26... Nxf2 {[%clk 0:00:36.2]} 27. Rd2 {[%clk 0:00:50.9]} 27... Nd3 {[%clk
0:00:30.2]} 28. Rxd3 {[%clk 0:00:52.3]} 28... Qxa2 {[%clk 0:00:30.8]} 29. Rf1
{[%clk 0:00:53]} 29... Rf8 {[%clk 0:00:26.8]} 30. h4 {[%clk 0:00:48.6]} 30...
Rb5 {[%clk 0:00:27.1]} 31. Qf6 {[%clk 0:00:47.1]} 31... Qc4 {[%clk 0:00:21]} 32.
Rh3 {[%clk 0:00:28.6]} 32... Qc5+ {[%clk 0:00:20.7]} 33. Kh1 {[%clk 0:00:27.7]}
33... Qe5 {[%clk 0:00:22.6]} 34. Qe7 {[%clk 0:00:27.7]} 34... Qc5 {[%clk
0:00:15]} 35. Qf6 {[%clk 0:00:26.6]} 35... Qc4 {[%clk 0:00:13.8]} 36. h5 {[%clk
0:00:26.2]} 36... Qg4 {[%clk 0:00:05.3]} 37. h6 {[%clk 0:00:24.1]} 1-0

[Event "*** MasterClass Titled Tuesday Blitz"]
[Site "Chess.com"]
[Date "2017.09.05"]
[Round "7"]
[White "Bengalas"]
[Black "The_Jagermeister"]
[Result "1-0"]
[WhiteElo "2507"]
[BlackElo "2413"]
[TimeControl "180+2"]
[EndTime "14:42:15 PDT"]
[Termination "Bengalas won by resignation"]

1. d4 {[%clk 0:03:01.9]} 1... d5 {[%clk 0:03:00.1]} 2. c4 {[%clk 0:02:56.5]}
2... e6 {[%clk 0:02:34.5]} 3. Nc3 {[%clk 0:02:56.5]} 3... c6 {[%clk 0:02:35.1]}
4. e3 {[%clk 0:02:55]} 4... Nf6 {[%clk 0:02:34.6]} 5. Nf3 {[%clk 0:02:53.8]}
5... Nbd7 {[%clk 0:02:36]} 6. Qc2 {[%clk 0:02:54]} 6... Bd6 {[%clk 0:02:36]} 7.
b3 {[%clk 0:02:54.4]} 7... O-O {[%clk 0:02:35.6]} 8. Bd3 {[%clk 0:02:55.2]} 8...
e5 {[%clk 0:02:34.7]} 9. cxd5 {[%clk 0:02:35.4]} 9... cxd5 {[%clk 0:02:33.7]}
10. Nb5 {[%clk 0:02:07.1]} 10... Bb8 {[%clk 0:02:23.6]} 11. dxe5 {[%clk
0:02:06.4]} 11... Nxe5 {[%clk 0:02:24.3]} 12. Nxe5 {[%clk 0:02:06.8]} 12... Bxe5
{[%clk 0:02:24.6]} 13. Bb2 {[%clk 0:02:06.4]} 13... Qa5+ {[%clk 0:02:05.2]} 14.
Ke2 {[%clk 0:01:59.9]} 14... Bxb2 {[%clk 0:02:02.2]} 15. Qxb2 {[%clk 0:02:00.1]}
15... Bd7 {[%clk 0:02:01.1]} 16. Nd4 {[%clk 0:02:00]} 16... Rac8 {[%clk
0:01:52]} 17. Rac1 {[%clk 0:01:59.9]} 17... Rfe8 {[%clk 0:01:46.6]} 18. a3
{[%clk 0:01:45.9]} 18... Ne4 {[%clk 0:01:43.2]} 19. b4 {[%clk 0:01:38.9]} 19...
Qb6 {[%clk 0:01:44.1]} 20. Rxc8 {[%clk 0:01:32.4]} 20... Bxc8 {[%clk 0:01:31.6]}
21. Rc1 {[%clk 0:01:15.7]} 21... Qg6 {[%clk 0:01:21.8]} 22. Kf1 {[%clk
0:01:00.2]} 22... Bf5 {[%clk 0:01:05.2]} 23. Kg1 {[%clk 0:00:39.6]} 23... Qf6
{[%clk 0:00:56.8]} 24. Qc2 {[%clk 0:00:36.7]} 24... h5 {[%clk 0:00:44.4]} 25. f3
{[%clk 0:00:23.7]} 25... Rc8 {[%clk 0:00:29.5]} 26. Qxc8+ {[%clk 0:00:15]} 26...
Bxc8 {[%clk 0:00:31.4]} 27. Rxc8+ {[%clk 0:00:15.9]} 27... Kh7 {[%clk
0:00:32.9]} 28. fxe4 {[%clk 0:00:16.9]} 28... dxe4 {[%clk 0:00:30.6]} 29. Bxe4+
{[%clk 0:00:17.7]} 29... g6 {[%clk 0:00:32.1]} 30. Bf3 {[%clk 0:00:17.5]} 30...
Qe5 {[%clk 0:00:26.3]} 31. Rc3 {[%clk 0:00:17.7]} 31... a5 {[%clk 0:00:26.4]}
32. bxa5 {[%clk 0:00:17.6]} 32... Qxa5 {[%clk 0:00:26.5]} 33. Ne2 {[%clk
0:00:18.8]} 33... b5 {[%clk 0:00:27.1]} 34. Kf2 {[%clk 0:00:18.8]} 34... b4
{[%clk 0:00:28.1]} 35. axb4 {[%clk 0:00:19.8]} 35... Qxb4 {[%clk 0:00:29.3]} 36.
g3 {[%clk 0:00:20.4]} 36... Qb2 {[%clk 0:00:29.6]} 37. Rc7 {[%clk 0:00:20.9]}
37... Kg7 {[%clk 0:00:27.6]} 38. Bd5 {[%clk 0:00:17.8]} 38... Qf6+ {[%clk
0:00:28.2]} 39. Bf3 {[%clk 0:00:18.7]} 39... Kh6 {[%clk 0:00:28.1]} 40. Nd4
{[%clk 0:00:18.6]} 40... g5 {[%clk 0:00:28.1]} 41. Rc6 {[%clk 0:00:19.3]} 1-0

[Event "*** MasterClass Titled Tuesday Blitz"]
[Site "Chess.com"]
[Date "2017.09.05"]
[Round "7"]
[White "GMKrikor"]
[Black "jk13"]
[Result "1/2-1/2"]
[WhiteElo "2582"]
[BlackElo "2440"]
[TimeControl "180+2"]
[EndTime "14:42:34 PDT"]
[Termination "Game drawn by repetition"]

1. e4 {[%clk 0:03:01.9]} 1... e5 {[%clk 0:03:00.9]} 2. Nf3 {[%clk 0:03:03.1]}
2... Nc6 {[%clk 0:03:02.3]} 3. Bb5 {[%clk 0:03:04.1]} 3... a6 {[%clk 0:03:03.8]}
4. Ba4 {[%clk 0:03:05.3]} 4... Nf6 {[%clk 0:03:01.7]} 5. O-O {[%clk 0:03:06.5]}
5... b5 {[%clk 0:03:03.5]} 6. Bb3 {[%clk 0:03:07.5]} 6... Bc5 {[%clk 0:03:06.5]}
7. a4 {[%clk 0:02:55.8]} 7... Rb8 {[%clk 0:03:07.4]} 8. axb5 {[%clk 0:02:54]}
8... axb5 {[%clk 0:03:09.6]} 9. Nxe5 {[%clk 0:02:54.5]} 9... Nxe5 {[%clk
0:03:09.9]} 10. d4 {[%clk 0:02:56.2]} 10... Bxd4 {[%clk 0:03:11.5]} 11. Qxd4
{[%clk 0:02:57.4]} 11... d6 {[%clk 0:03:13.5]} 12. Bf4 {[%clk 0:02:54.2]} 12...
c5 {[%clk 0:03:12.2]} 13. Qd2 {[%clk 0:02:53.7]} 13... c4 {[%clk 0:03:10.9]} 14.
Ba2 {[%clk 0:02:54.6]} 14... O-O {[%clk 0:03:10.8]} 15. f3 {[%clk 0:02:54.2]}
15... Re8 {[%clk 0:03:05.2]} 16. Nc3 {[%clk 0:02:47.6]} 16... b4 {[%clk
0:02:50.6]} 17. Ne2 {[%clk 0:02:40.6]} 17... b3 {[%clk 0:02:24.8]} 18. cxb3
{[%clk 0:02:41.2]} 18... cxb3 {[%clk 0:02:26.5]} 19. Bb1 {[%clk 0:02:42.7]}
19... Qb6+ {[%clk 0:02:07.2]} 20. Qd4 {[%clk 0:02:24.8]} 20... Nc4 {[%clk
0:01:35.1]} 21. Qxb6 {[%clk 0:02:00]} 21... Rxb6 {[%clk 0:01:36]} 22. Rc1 {[%clk
0:01:33.2]} 22... Nxb2 {[%clk 0:01:10.6]} 23. Ra8 {[%clk 0:01:33.2]} 23... Bd7
{[%clk 0:01:04.9]} 24. Rxe8+ {[%clk 0:01:24.6]} 24... Nxe8 {[%clk 0:01:05.8]}
25. Nc3 {[%clk 0:00:41.4]} 25... Rc6 {[%clk 0:01:00.2]} 26. Kf1 {[%clk 0:00:35]}
26... Be6 {[%clk 0:00:55.4]} 27. Ke1 {[%clk 0:00:27.6]} 27... Kf8 {[%clk
0:00:47.9]} 28. Nb5 {[%clk 0:00:20.2]} 28... Rxc1+ {[%clk 0:00:44.2]} 29. Bxc1
{[%clk 0:00:22.1]} 29... Nc4 {[%clk 0:00:43.1]} 30. Bd3 {[%clk 0:00:14.9]} 30...
Ne5 {[%clk 0:00:25.2]} 31. Be2 {[%clk 0:00:10.7]} 31... Bc4 {[%clk 0:00:25.1]}
32. Nd4 {[%clk 0:00:04]} 32... Bxe2 {[%clk 0:00:23.9]} 33. Kxe2 {[%clk
0:00:05.6]} 33... Nc4 {[%clk 0:00:24.6]} 34. Nxb3 {[%clk 0:00:06.7]} 34... Ke7
{[%clk 0:00:24.4]} 35. Kd3 {[%clk 0:00:05.3]} 35... Ne5+ {[%clk 0:00:24.7]} 36.
Ke3 {[%clk 0:00:07]} 36... f6 {[%clk 0:00:24.9]} 37. Nd4 {[%clk 0:00:06.7]}
37... g6 {[%clk 0:00:25.8]} 38. f4 {[%clk 0:00:05.8]} 38... Ng4+ {[%clk
0:00:25.5]} 39. Kf3 {[%clk 0:00:06.2]} 39... Nxh2+ {[%clk 0:00:27.5]} 40. Kg3
{[%clk 0:00:05.1]} 40... Nf1+ {[%clk 0:00:28.6]} 41. Kf2 {[%clk 0:00:06.7]}
41... Nh2 {[%clk 0:00:29.8]} 42. Kg3 {[%clk 0:00:07.7]} 42... Nf1+ {[%clk
0:00:31.1]} 43. Kf2 {[%clk 0:00:06.9]} 43... Nh2 {[%clk 0:00:32.2]} 44. Kg3
{[%clk 0:00:05.7]} 44... Nf1+ {[%clk 0:00:33.5]} 45. Kf2 {[%clk 0:00:04.5]}
45... Nh2 {[%clk 0:00:34.6]} 46. Kg3 {[%clk 0:00:06.1]} 46... Nf1+ {[%clk
0:00:35.8]} 47. Kf2 {[%clk 0:00:07.6]} 47... Nh2 {[%clk 0:00:37]} 48. Kg3 {[%clk
0:00:08.9]} 1/2-1/2

[Event "*** MasterClass Titled Tuesday Blitz"]
[Site "Chess.com"]
[Date "2017.09.05"]
[Round "7"]
[White "andreimacovei2000"]
[Black "Fandorine"]
[Result "1-0"]
[WhiteElo "2435"]
[BlackElo "2648"]
[TimeControl "180+2"]
[EndTime "14:42:35 PDT"]
[Termination "andreimacovei2000 won by resignation"]

1. d4 {[%clk 0:03:01.9]} 1... Nf6 {[%clk 0:02:59.9]} 2. c4 {[%clk 0:03:02.4]}
2... e6 {[%clk 0:03:01.3]} 3. Nc3 {[%clk 0:02:59.9]} 3... Bb4 {[%clk 0:03:01.7]}
4. Nf3 {[%clk 0:02:48.4]} 4... O-O {[%clk 0:03:00.3]} 5. g4 {[%clk 0:02:46.8]}
5... d5 {[%clk 0:02:56.9]} 6. Qd3 {[%clk 0:02:42.1]} 6... c5 {[%clk 0:02:53.5]}
7. a3 {[%clk 0:02:40.2]} 7... Bxc3+ {[%clk 0:02:48.7]} 8. bxc3 {[%clk
0:02:40.7]} 8... Nc6 {[%clk 0:02:47.2]} 9. Bg5 {[%clk 0:02:38.3]} 9... h6 {[%clk
0:02:37.3]} 10. Bxf6 {[%clk 0:02:35.8]} 10... Qxf6 {[%clk 0:02:37.7]} 11. h4
{[%clk 0:02:37.3]} 11... dxc4 {[%clk 0:02:30.6]} 12. Qxc4 {[%clk 0:02:35.9]}
12... cxd4 {[%clk 0:02:31.6]} 13. g5 {[%clk 0:02:36.7]} 13... Qf4 {[%clk
0:02:29.5]} 14. cxd4 {[%clk 0:02:34.6]} 14... Bd7 {[%clk 0:02:28.6]} 15. Qd3
{[%clk 0:02:23.2]} 15... Rfd8 {[%clk 0:02:23.7]} 16. Qe3 {[%clk 0:02:19.5]}
16... Qxe3 {[%clk 0:02:22.5]} 17. fxe3 {[%clk 0:02:21.4]} 17... h5 {[%clk
0:02:20.3]} 18. Bg2 {[%clk 0:02:19.7]} 18... Rac8 {[%clk 0:02:20.3]} 19. Kf2
{[%clk 0:02:17.7]} 19... Kf8 {[%clk 0:02:04.8]} 20. Rhc1 {[%clk 0:02:13.1]}
20... Ke7 {[%clk 0:02:05.4]} 21. Nd2 {[%clk 0:02:11.3]} 21... Na5 {[%clk
0:02:03]} 22. Bf3 {[%clk 0:02:09.8]} 22... b6 {[%clk 0:01:56.8]} 23. Bxh5 {[%clk
0:02:07.3]} 23... Rh8 {[%clk 0:01:57.2]} 24. Rxc8 {[%clk 0:02:06.1]} 24... Bxc8
{[%clk 0:01:58.2]} 25. Rc1 {[%clk 0:02:03.9]} 25... Bd7 {[%clk 0:01:47.9]} 26.
Bf3 {[%clk 0:02:02.1]} 26... Rxh4 {[%clk 0:01:46.9]} 27. Rc7 {[%clk 0:02:02]}
27... Rh2+ {[%clk 0:01:30.1]} 28. Kg3 {[%clk 0:02:00.5]} 28... Rh8 {[%clk
0:01:31.6]} 29. Rxa7 {[%clk 0:01:59.3]} 29... Rc8 {[%clk 0:01:33.1]} 30. Be4
{[%clk 0:01:56.6]} 30... Rc3 {[%clk 0:01:17.4]} 31. Nf3 {[%clk 0:01:57]} 31...
f6 {[%clk 0:00:59.1]} 32. Kf4 {[%clk 0:01:48.7]} 32... Kd6 {[%clk 0:00:49.9]}
33. Bd3 {[%clk 0:01:46.9]} 33... Rxa3 {[%clk 0:00:37]} 34. Ne5 {[%clk
0:01:14.3]} 34... Be8 {[%clk 0:00:18.3]} 35. Nf3 {[%clk 0:01:00.4]} 35... Bd7
{[%clk 0:00:14.5]} 36. e4 {[%clk 0:00:48]} 36... Ra4 {[%clk 0:00:14.3]} 37.
Rxd7+ {[%clk 0:00:43.1]} 37... Kxd7 {[%clk 0:00:14.2]} 38. Bb5+ {[%clk 0:00:44]}
38... Kd6 {[%clk 0:00:15.7]} 39. Bxa4 {[%clk 0:00:45.9]} 39... Nc4 {[%clk
0:00:14.8]} 40. gxf6 {[%clk 0:00:35.1]} 40... gxf6 {[%clk 0:00:16.7]} 41. e5+
{[%clk 0:00:36.2]} 41... fxe5+ {[%clk 0:00:17.6]} 42. Nxe5 {[%clk 0:00:37.3]}
42... Na5 {[%clk 0:00:15.6]} 43. e4 {[%clk 0:00:34.4]} 43... Ke7 {[%clk
0:00:13.8]} 1-0

[Event "*** MasterClass Titled Tuesday Blitz"]
[Site "Chess.com"]
[Date "2017.09.05"]
[Round "7"]
[White "mwpchess"]
[Black "novocane"]
[Result "0-1"]
[WhiteElo "2427"]
[BlackElo "2170"]
[TimeControl "180+2"]
[EndTime "14:42:53 PDT"]
[Termination "novocane won on time"]

1. e4 {[%clk 0:03:01.9]} 1... c5 {[%clk 0:03:00.1]} 2. Nf3 {[%clk 0:02:56.6]}
2... Nc6 {[%clk 0:03:00.7]} 3. Bb5 {[%clk 0:02:56.4]} 3... Nf6 {[%clk
0:03:01.1]} 4. Bxc6 {[%clk 0:02:56.8]} 4... dxc6 {[%clk 0:03:01.4]} 5. d3 {[%clk
0:02:56.8]} 5... Bg4 {[%clk 0:03:01.3]} 6. h3 {[%clk 0:02:57.2]} 6... Bh5 {[%clk
0:03:02.2]} 7. Nc3 {[%clk 0:02:51.6]} 7... Nd7 {[%clk 0:02:50.2]} 8. g4 {[%clk
0:02:44.4]} 8... Bg6 {[%clk 0:02:48.8]} 9. Nh4 {[%clk 0:02:42.8]} 9... e6 {[%clk
0:02:41.3]} 10. Nxg6 {[%clk 0:02:43.7]} 10... hxg6 {[%clk 0:02:41.7]} 11. Qf3
{[%clk 0:02:44.2]} 11... Ne5 {[%clk 0:02:24]} 12. Qg2 {[%clk 0:02:43.7]} 12...
Qf6 {[%clk 0:02:03.5]} 13. Be3 {[%clk 0:02:25.7]} 13... Nf3+ {[%clk 0:01:51]}
14. Ke2 {[%clk 0:02:26.1]} 14... Nd4+ {[%clk 0:01:42.8]} 15. Bxd4 {[%clk
0:02:24.4]} 15... cxd4 {[%clk 0:01:38]} 16. Nb1 {[%clk 0:02:24.9]} 16... O-O-O
{[%clk 0:01:38.2]} 17. Nd2 {[%clk 0:02:21.4]} 17... Bd6 {[%clk 0:01:32.9]} 18.
Qf3 {[%clk 0:02:11.4]} 18... Bf4 {[%clk 0:01:30.4]} 19. Nc4 {[%clk 0:01:57]}
19... g5 {[%clk 0:01:09.7]} 20. a4 {[%clk 0:01:55.7]} 20... Qe7 {[%clk
0:01:05.9]} 21. c3 {[%clk 0:01:30.5]} 21... f5 {[%clk 0:00:55.3]} 22. h4 {[%clk
0:01:21.2]} 22... dxc3 {[%clk 0:00:44.3]} 23. bxc3 {[%clk 0:01:20.9]} 23... Qd7
{[%clk 0:00:36.8]} 24. Rad1 {[%clk 0:01:13.6]} 24... Rhf8 {[%clk 0:00:22.4]} 25.
hxg5 {[%clk 0:01:09.8]} 25... Bxg5 {[%clk 0:00:23.3]} 26. Rh5 {[%clk 0:01:05.4]}
26... fxg4 {[%clk 0:00:17.6]} 27. Qxg4 {[%clk 0:01:04.5]} 27... Bh6 {[%clk
0:00:18.3]} 28. Re5 {[%clk 0:00:57.7]} 28... Rf6 {[%clk 0:00:18.2]} 29. Rh5
{[%clk 0:00:41.6]} 29... Rdf8 {[%clk 0:00:18.7]} 30. Rh2 {[%clk 0:00:38.4]}
30... Qc7 {[%clk 0:00:18.4]} 31. Rg2 {[%clk 0:00:35.8]} 31... Kb8 {[%clk
0:00:17.7]} 32. Qg3 {[%clk 0:00:30.6]} 32... Rf4 {[%clk 0:00:16.1]} 33. a5
{[%clk 0:00:21]} 33... a6 {[%clk 0:00:16.7]} 34. Rb1 {[%clk 0:00:20.5]} 34...
Rxf2+ {[%clk 0:00:17.1]} 35. Rxf2 {[%clk 0:00:15.1]} 35... Qxg3 {[%clk
0:00:17.8]} 36. Rxf8+ {[%clk 0:00:15.9]} 36... Kc7 {[%clk 0:00:15.1]} 37. Rf7+
{[%clk 0:00:16.6]} 37... Kd8 {[%clk 0:00:15]} 38. Rbxb7 {[%clk 0:00:17.3]} 38...
Qg2+ {[%clk 0:00:15.4]} 39. Ke1 {[%clk 0:00:16.2]} 39... Qg1+ {[%clk 0:00:16.3]}
40. Ke2 {[%clk 0:00:17.1]} 40... Qg2+ {[%clk 0:00:17.3]} 41. Rf2 {[%clk
0:00:16.1]} 41... Qg4+ {[%clk 0:00:17.3]} 42. Kf1 {[%clk 0:00:16.1]} 42... Qd1+
{[%clk 0:00:17.9]} 43. Kg2 {[%clk 0:00:17]} 43... Qg4+ {[%clk 0:00:19.8]} 44.
Kf1 {[%clk 0:00:16.6]} 44... Qd1+ {[%clk 0:00:20.7]} 0-1

[Event "*** MasterClass Titled Tuesday Blitz"]
[Site "Chess.com"]
[Date "2017.09.05"]
[Round "7"]
[White "AdrianaNikolova"]
[Black "Carolina-moon"]
[Result "1-0"]
[WhiteElo "2260"]
[BlackElo "2109"]
[TimeControl "180+2"]
[EndTime "14:42:54 PDT"]
[Termination "AdrianaNikolova won on time"]

1. e4 {[%clk 0:03:01.9]} 1... c5 {[%clk 0:02:52.3]} 2. Nf3 {[%clk 0:02:56]} 2...
d6 {[%clk 0:02:51.3]} 3. d4 {[%clk 0:02:56.9]} 3... Nf6 {[%clk 0:02:52.9]} 4.
Nc3 {[%clk 0:02:57.5]} 4... cxd4 {[%clk 0:02:53.6]} 5. Nxd4 {[%clk 0:02:59.4]}
5... a6 {[%clk 0:02:54.8]} 6. Bg5 {[%clk 0:02:59.7]} 6... e6 {[%clk 0:02:54.9]}
7. f4 {[%clk 0:03:00.7]} 7... Be7 {[%clk 0:02:55.9]} 8. Qf3 {[%clk 0:03:01.5]}
8... Qc7 {[%clk 0:02:57.4]} 9. O-O-O {[%clk 0:03:02.3]} 9... Nbd7 {[%clk
0:02:58.9]} 10. g4 {[%clk 0:03:02.4]} 10... b5 {[%clk 0:02:59.9]} 11. Bxf6
{[%clk 0:03:03.3]} 11... Bxf6 {[%clk 0:03:01]} 12. Bxb5 {[%clk 0:03:01.9]} 12...
Rb8 {[%clk 0:03:00.8]} 13. Ba4 {[%clk 0:02:55]} 13... O-O {[%clk 0:02:59.4]} 14.
g5 {[%clk 0:02:52.4]} 14... Bxd4 {[%clk 0:03:00]} 15. Rxd4 {[%clk 0:02:52.3]}
15... Qb6 {[%clk 0:02:59.7]} 16. Rhd1 {[%clk 0:02:36.5]} 16... Qxb2+ {[%clk
0:02:58.7]} 17. Kd2 {[%clk 0:02:37.9]} 17... Qa3 {[%clk 0:02:54.2]} 18. Bb3
{[%clk 0:02:31.4]} 18... Nc5 {[%clk 0:02:42.9]} 19. Ke2 {[%clk 0:02:12]} 19...
Rd8 {[%clk 0:02:07]} 20. Rxd6 {[%clk 0:02:01.6]} 20... Rxd6 {[%clk 0:02:08]} 21.
Rxd6 {[%clk 0:02:03.1]} 21... Bb7 {[%clk 0:02:08.4]} 22. Rd4 {[%clk 0:01:50.8]}
22... Qb2 {[%clk 0:01:56.9]} 23. Qe3 {[%clk 0:01:43.9]} 23... Rc8 {[%clk
0:01:48.6]} 24. Qd2 {[%clk 0:01:23.7]} 24... h6 {[%clk 0:01:01.3]} 25. Rd8+
{[%clk 0:01:22.4]} 25... Rxd8 {[%clk 0:01:02.1]} 26. Qxd8+ {[%clk 0:01:24.3]}
26... Kh7 {[%clk 0:01:03.6]} 27. Qd4 {[%clk 0:01:07.4]} 27... Nxe4 {[%clk
0:00:54.2]} 28. Nb5 {[%clk 0:00:53.5]} 28... Qxd4 {[%clk 0:00:29.5]} 29. Nxd4
{[%clk 0:00:55.4]} 29... hxg5 {[%clk 0:00:29.3]} 30. fxg5 {[%clk 0:00:53.2]}
30... Kg6 {[%clk 0:00:24.7]} 31. h4 {[%clk 0:00:46.8]} 31... Kh5 {[%clk
0:00:21.5]} 32. Ke3 {[%clk 0:00:44]} 32... Kxh4 {[%clk 0:00:20.9]} 33. Nf3+
{[%clk 0:00:41.7]} 33... Kg3 {[%clk 0:00:20.7]} 34. Ne5 {[%clk 0:00:31.4]} 34...
Nxg5 {[%clk 0:00:16.8]} 35. c4 {[%clk 0:00:27.1]} 35... f5 {[%clk 0:00:17.6]}
36. c5 {[%clk 0:00:26.8]} 36... f4+ {[%clk 0:00:18.9]} 37. Kd3 {[%clk
0:00:21.2]} 37... Be4+ {[%clk 0:00:17.5]} 38. Ke2 {[%clk 0:00:07.3]} 38... f3+
{[%clk 0:00:15.8]} 39. Ke3 {[%clk 0:00:04.3]} 39... Bd5 {[%clk 0:00:07]} 40.
Bxd5 {[%clk 0:00:03.5]} 40... exd5 {[%clk 0:00:08.1]} 41. Nxf3 {[%clk
0:00:02.6]} 41... Nxf3 {[%clk 0:00:08.6]} 42. c6 {[%clk 0:00:04.1]} 1-0

[Event "*** MasterClass Titled Tuesday Blitz"]
[Site "Chess.com"]
[Date "2017.09.05"]
[Round "7"]
[White "temiksmozg"]
[Black "gmcorrales"]
[Result "1-0"]
[WhiteElo "2443"]
[BlackElo "2654"]
[TimeControl "180+2"]
[EndTime "14:43:22 PDT"]
[Termination "temiksmozg won by checkmate"]

1. d4 {[%clk 0:03:01.5]} 1... Nf6 {[%clk 0:02:43.8]} 2. c4 {[%clk 0:03:01.3]}
2... e6 {[%clk 0:02:35.5]} 3. Nf3 {[%clk 0:03:00.8]} 3... Bb4+ {[%clk
0:02:34.9]} 4. Nbd2 {[%clk 0:03:00.8]} 4... d5 {[%clk 0:02:31.8]} 5. Qa4+ {[%clk
0:02:59.6]} 5... Nc6 {[%clk 0:02:32.4]} 6. e3 {[%clk 0:03:01.2]} 6... O-O {[%clk
0:02:33]} 7. a3 {[%clk 0:03:00.5]} 7... Be7 {[%clk 0:02:32.9]} 8. Qc2 {[%clk
0:02:58]} 8... a5 {[%clk 0:02:25.2]} 9. b3 {[%clk 0:02:56.5]} 9... Re8 {[%clk
0:02:21.6]} 10. Bb2 {[%clk 0:02:57.4]} 10... Bd7 {[%clk 0:02:21.4]} 11. Bd3
{[%clk 0:02:58]} 11... Bf8 {[%clk 0:02:20.6]} 12. O-O {[%clk 0:02:58.7]} 12...
Ne7 {[%clk 0:02:18.1]} 13. Ne5 {[%clk 0:02:52.3]} 13... Ng6 {[%clk 0:02:18.4]}
14. Nxd7 {[%clk 0:02:45]} 14... Qxd7 {[%clk 0:02:19.1]} 15. Rfd1 {[%clk
0:02:46.3]} 15... c6 {[%clk 0:02:16.8]} 16. Bf1 {[%clk 0:02:46.4]} 16... Bd6
{[%clk 0:02:13.8]} 17. g3 {[%clk 0:02:46.9]} 17... h5 {[%clk 0:02:14.4]} 18. Nf3
{[%clk 0:02:43.4]} 18... h4 {[%clk 0:02:14.8]} 19. Bd3 {[%clk 0:02:40.1]} 19...
Nf8 {[%clk 0:02:07.4]} 20. Nxh4 {[%clk 0:02:38.8]} 20... e5 {[%clk 0:01:51.3]}
21. dxe5 {[%clk 0:02:33.4]} 21... Bxe5 {[%clk 0:01:53.2]} 22. Nf3 {[%clk
0:02:34.8]} 22... Bxb2 {[%clk 0:01:53.9]} 23. Qxb2 {[%clk 0:02:36.7]} 23... Qg4
{[%clk 0:01:50.6]} 24. Kg2 {[%clk 0:02:37.4]} 24... Rad8 {[%clk 0:01:50.6]} 25.
h3 {[%clk 0:02:36.8]} 25... Qh5 {[%clk 0:01:44.3]} 26. cxd5 {[%clk 0:02:34.5]}
26... Rxd5 {[%clk 0:01:45.4]} 27. Qe2 {[%clk 0:02:27.9]} 27... Qh6 {[%clk
0:01:41.4]} 28. a4 {[%clk 0:02:05.6]} 28... Rh5 {[%clk 0:01:30.7]} 29. h4 {[%clk
0:01:55.3]} 29... Ng4 {[%clk 0:01:28.9]} 30. Re1 {[%clk 0:01:52.7]} 30... g5
{[%clk 0:01:17.7]} 31. Rh1 {[%clk 0:01:42.5]} 31... gxh4 {[%clk 0:00:44.7]} 32.
Rxh4 {[%clk 0:01:43.1]} 32... Nxe3+ {[%clk 0:00:24.6]} 33. fxe3 {[%clk 0:01:43]}
33... Rxe3 {[%clk 0:00:26.5]} 34. Qf1 {[%clk 0:01:14.1]} 34... Rxh4 {[%clk
0:00:27.4]} 35. Nxh4 {[%clk 0:01:14.4]} 35... Ne6 {[%clk 0:00:24.2]} 36. Nf5
{[%clk 0:01:09.5]} 36... Qg5 {[%clk 0:00:23.6]} 37. Nxe3 {[%clk 0:01:05.4]}
37... Qxe3 {[%clk 0:00:25.5]} 38. Re1 {[%clk 0:01:06]} 38... Qd2+ {[%clk
0:00:26.9]} 39. Kh1 {[%clk 0:01:02.1]} 39... Qh6+ {[%clk 0:00:25.8]} 40. Kg1
{[%clk 0:01:00.5]} 40... Qd2 {[%clk 0:00:25.8]} 41. Qe2 {[%clk 0:00:57.4]} 41...
Qc3 {[%clk 0:00:24.3]} 42. Kh2 {[%clk 0:00:51]} 42... Kf8 {[%clk 0:00:22.1]} 43.
Rf1 {[%clk 0:00:47.9]} 43... Qxb3 {[%clk 0:00:22.2]} 44. Bc4 {[%clk 0:00:46.6]}
44... Qxa4 {[%clk 0:00:07.4]} 45. Bxe6 {[%clk 0:00:38.7]} 45... Ke7 {[%clk
0:00:08.5]} 46. Rxf7+ {[%clk 0:00:37.3]} 46... Kd6 {[%clk 0:00:09.6]} 47. Rd7+
{[%clk 0:00:36.3]} 47... Kc5 {[%clk 0:00:10.6]} 48. Qe5+ {[%clk 0:00:35.9]}
48... Kb6 {[%clk 0:00:11.8]} 49. Qc7+ {[%clk 0:00:33.9]} 49... Kc5 {[%clk
0:00:12.5]} 50. Qd6+ {[%clk 0:00:33.3]} 50... Kb6 {[%clk 0:00:13.3]} 51. Qd4+
{[%clk 0:00:34]} 51... Qxd4 {[%clk 0:00:14.2]} 52. Rxd4 {[%clk 0:00:35.9]} 52...
Kc5 {[%clk 0:00:16.1]} 53. Rd7 {[%clk 0:00:36]} 53... b5 {[%clk 0:00:17.3]} 54.
g4 {[%clk 0:00:37.4]} 54... a4 {[%clk 0:00:18.7]} 55. g5 {[%clk 0:00:38.8]}
55... b4 {[%clk 0:00:20.3]} 56. g6 {[%clk 0:00:40.1]} 56... Kb6 {[%clk
0:00:21.3]} 57. g7 {[%clk 0:00:41.2]} 57... b3 {[%clk 0:00:22.9]} 58. g8=Q
{[%clk 0:00:42.2]} 58... b2 {[%clk 0:00:24.8]} 59. Qg1+ {[%clk 0:00:42.9]} 59...
Kb5 {[%clk 0:00:25.5]} 60. Rb7+ {[%clk 0:00:42.2]} 60... Ka6 {[%clk 0:00:24.5]}
61. Qb6# {[%clk 0:00:42.9]} 1-0